bitfinex-derivatives/quotes_SOLF0:USTF0_20241025
["timestamp","ask_amount","ask_price","bid_price","bid_amount"]
[1729872662482,4.63,172.54,172.5,31.13653759]
[1729872662881,4.63,172.54,172.5,28.23673759]
[1729872663584,4.63,172.54,172.53,22.35673759]
[1729872663782,4.63,172.54,172.53,25.25603759]
[1729872664182,2.6685,172.54,172.53,22.35673759]
[1729872664386,7.155,172.66,172.53,22.35673759]
[1729872664586,22.35673759,172.62,172.48,5.88]
[1729872664785,5.88,172.61,172.48,5.88]
[1729872665482,5.88,172.61,172.49,5.88]
[1729872666087,2.8986,172.58,172.49,5.88]
[1729872666282,5.88,172.63,172.5,22.35673759]
[1729872666590,5.88,172.63,172.5,23.54853759]
[1729872667291,5.88,172.63,172.53,22.35673759]
[1729872667486,1.2715,172.64,172.54,5.88]
[1729872667686,2.898,172.61,172.54,8.7791]
[1729872668387,2.898,172.61,172.54,5.88]
[1729872668592,1.2715,172.64,172.54,5.88]
[1729872668987,2.8985,172.58,172.52,5.88]
[1729872669391,1.2715,172.64,172.53,22.35673759]
[1729872669592,2.8981,172.61,172.54,2.899]
[1729872669890,1.2715,172.64,172.53,22.35673759]
[1729872670286,2.8981,172.61,172.54,2.899]
[1729872670588,1.2715,172.64,172.54,2.899]
[1729872670986,2.8981,172.61,172.54,2.899]
[1729872671187,1.2715,172.64,172.54,2.899]
[1729872671390,1.2715,172.64,172.52,5.88]
[1729872671592,2.8986,172.58,172.52,5.88]
[1729872672585,2.8986,172.58,172.52,8.7794]
[1729872672786,1.2715,172.64,172.52,5.88]
[1729872672992,2.8981,172.61,172.53,22.35673759]
[1729872673192,1.2715,172.64,172.54,2.8991]
[1729872673789,1.2715,172.64,172.51,25.25623759]
[1729872673988,1.2715,172.64,172.52,5.88]
[1729872674187,2.8985,172.58,172.52,5.88]
[1729872674394,2.8985,172.58,172.52,8.7794]
[1729872675187,5.74,172.62,172.51,22.35673759]
[1729872675492,1.2453,172.57,172.48,28.09673759]
[1729872675698,2.8993,172.53,172.48,28.09673759]
[1729872675991,1.2453,172.57,172.48,28.09673759]
[1729872676496,2.899,172.55,172.49,2.8999]
[1729872676689,1.2453,172.57,172.51,22.35673759]
[1729872677396,2.899,172.55,172.51,22.35673759]
[1729872678098,1.2453,172.57,172.48,28.09673759]
[1729872678099,2.8995,172.52,172.48,28.09673759]
[1729872678304,1.2453,172.57,172.48,28.09673759]
[1729872678689,2.899,172.55,172.5,22.35673759]
[1729872679097,5.74,172.62,172.5,22.35673759]
[1729872679291,2.8986,172.58,172.53,22.35673759]
[1729872679692,5.74,172.62,172.53,30.99593759]
[1729872679894,5.74,172.62,172.53,28.09673759]
[1729872680096,5.74,172.62,172.53,5.74]
[1729872680495,2.8982,172.6,172.53,5.74]
[1729872680696,5.74,172.62,172.53,5.74]
[1729872681506,2.8984,172.59,172.54,13.92717379]
[1729872681799,1.2747,172.63,172.54,13.92717379]
[1729872682189,1.2747,172.63,172.57,13.92717379]
[1729872682390,2.898,172.61,172.57,13.92717379]
[1729872683095,2.8984,172.59,172.57,13.92717379]
[1729872683295,1.2747,172.63,172.57,13.92717379]
[1729872684203,2.8982,172.6,172.57,13.92717379]
[1729872684600,1.2747,172.63,172.57,13.92717379]
[1729872685296,2.8981,172.6,172.57,13.92717379]
[1729872686907,1.2747,172.63,172.57,13.92717379]
[1729872687111,1.2747,172.63,172.54,13.92717379]
[1729872687607,2.8985,172.59,172.54,13.92717379]
[1729872687809,1.2747,172.63,172.54,13.92717379]
[1729872688000,1.2747,172.63,172.57,13.92717379]
[1729872688200,2.8978,172.62,172.57,13.92717379]
[1729872688406,2.8978,172.62,172.53,5.74]
[1729872688407,2.8978,172.62,172.59,13.92717379]
[1729872688600,1.2747,172.63,172.59,16.82537379]
[1729872688801,1.2747,172.63,172.59,13.92717379]
[1729872689297,13.92717379,172.69,172.59,13.92717379]
[1729872689298,5.74,172.69,172.6,2.8981]
[1729872689699,2.8975,172.64,172.6,2.8981]
[1729872689898,13.92717379,172.7,172.61,2.8979]
[1729872690097,3.7087,172.71,172.62,13.92717379]
[1729872690293,3.7087,172.71,172.64,13.92717379]
[1729872690294,2.8965,172.7,172.64,13.92717379]
[1729872690498,2.8965,172.7,172.53,5.7984]
[1729872690499,3.7087,172.71,172.62,5.74]
[1729872690700,17.63587379,172.71,172.61,13.92717379]
[1729872690899,2.8971,172.67,172.61,19.66717379]
[1729872691103,4.63,172.7,172.61,19.66717379]
[1729872691596,4.63,172.7,172.63,13.92717379]
[1729872692594,4.63,172.7,172.65,13.92717379]
[1729872692799,4.63,172.7,172.68,13.92717379]
[1729872693194,4.63,172.7,172.69,2.8966]
[1729872693395,4.63,172.7,172.68,13.92717379]
[1729872693594,4.63,172.7,172.64,13.92717379]
[1729872693805,2.8971,172.67,172.62,5.72]
[1729872694002,4.63,172.7,172.6,5.72]
[1729872694003,13.92717379,172.68,172.6,5.72]
[1729872694205,18.55717379,172.7,172.6,5.72]
[1729872694509,4.63,172.7,172.6,5.72]
[1729872694705,4.63,172.7,172.61,22.26150787]
[1729872695403,2.8974,172.65,172.6,8.6181]
[1729872695609,4.63,172.7,172.6,5.72]
[1729872695805,4.63,172.7,172.55,22.26150787]
[1729872695806,22.26150787,172.69,172.55,22.26150787]
[1729872696004,22.26150787,172.69,172.56,6.04]
[1729872696400,10.67,172.7,172.6,22.26150787]
[1729872696401,4.63,172.7,172.6,22.26150787]
[1729872696608,4.63,172.7,172.61,6.04]
[1729872696804,4.63,172.7,172.63,22.26150787]
[1729872697108,4.63,172.7,172.64,6.36]
[1729872697700,4.63,172.7,172.65,22.26150787]
[1729872697900,4.63,172.7,172.68,2.8968]
[1729872698298,4.63,172.7,172.65,22.26150787]
[1729872698506,4.63,172.7,172.69,2.8966]
[1729872698711,3.3761,172.7,172.69,2.8966]
[1729872699599,3.3761,172.7,172.68,25.15820787]
[1729872699804,2.8967,172.69,172.65,22.26150787]
[1729872700112,3.3761,172.7,172.65,31.51870787]
[1729872700408,3.3761,172.7,172.62,23.48100787]
[1729872700610,3.3761,172.7,172.64,2.8974]
[1729872700811,3.3761,172.7,172.62,23.48100787]
[1729872701005,2.8973,172.65,172.62,23.48100787]
[1729872701204,3.3761,172.7,172.61,6.36]
[1729872702905,2.8974,172.65,172.61,6.36]
[1729872703115,3.3761,172.7,172.61,6.36]
[1729872703414,2.8969,172.68,172.63,2.8975]
[1729872703605,3.3761,172.7,172.61,6.36]
[1729872703809,3.3761,172.7,172.59,28.62150787]
[1729872704005,2.8976,172.64,172.59,28.62150787]
[1729872704210,1.2273,172.73,172.62,22.26150787]
[1729872704614,2.897,172.67,172.62,22.26150787]
[1729872704918,1.2273,172.73,172.6,23.52950787]
[1729872705405,1.2273,172.73,172.63,22.26150787]
[1729872706218,2.8955,172.76,172.69,2.8965]
[1729872706416,6.68,172.78,172.66,22.26150787]
[1729872706417,7.8761,172.78,172.66,22.26150787]
[1729872706917,7.8761,172.78,172.67,2.8968]
[1729872707517,2.8961,172.72,172.67,2.8968]
[1729872707723,7.8761,172.78,172.68,2.8967]
[1729872708423,1.1961,172.78,172.66,22.26150787]
[1729872708626,2.8957,172.75,172.66,22.26150787]
[1729872708919,1.1961,172.78,172.68,2.8967]
[1729872709121,2.896,172.73,172.66,22.26150787]
[1729872709315,1.1961,172.78,172.66,22.26150787]
[1729872709720,2.8958,172.74,172.66,22.26150787]
[1729872710121,1.1961,172.78,172.66,22.26150787]
[1729872710821,2.8961,172.72,172.66,25.15850787]
[1729872711127,2.8961,172.72,172.66,22.26150787]
[1729872711330,2.8959,172.73,172.66,22.26150787]
[1729872711832,7.8761,172.78,172.66,22.26150787]
[1729872712021,22.26150787,172.77,172.64,6.68]
[1729872712221,7.8761,172.78,172.66,22.26150787]
[1729872712721,7.8761,172.78,172.67,2.8969]
[1729872712921,7.8761,172.78,172.66,22.26150787]
[1729872713626,2.8964,172.71,172.65,2.8972]
[1729872713828,31.76986446,172.72,172.48,5.8001]
[1729872714027,23.55990787,172.7,172.56,22.26150787]
[1729872714227,23.55990787,172.7,172.53,1.1785]
[1729872714228,1.267,172.69,172.58,22.26150787]
[1729872714429,1.267,172.69,172.55,6.68]
[1729872714430,1.267,172.69,172.61,22.26150787]
[1729872714636,6.68,172.7,172.61,22.26150787]
[1729872714834,2.8965,172.7,172.65,2.8972]
[1729872715040,7.947,172.74,172.62,1.2959]
[1729872715229,2.582,172.76,172.64,22.26150787]
[1729872715630,2.8963,172.71,172.65,2.8971]
[1729872715931,22.26150787,172.75,172.62,7.9759]
[1729872716135,6.68,172.74,172.62,7.9759]
[1729872716435,13.91093783,172.71,172.62,7.9759]
[1729872716639,13.91093783,172.71,172.61,13.91093783]
[1729872716640,1.267,172.7,172.61,13.91093783]
[1729872717432,2.8971,172.67,172.61,16.80873783]
[1729872717829,2.8971,172.67,172.61,13.91093783]
[1729872718430,2.8971,172.67,172.62,2.8977]
[1729872718632,2.897,172.67,172.62,2.8977]
[1729872718831,15.15193783,172.73,172.63,13.91093783]
[1729872719032,15.15193783,172.73,172.64,2.8974]
[1729872720228,15.15193783,172.73,172.63,13.91093783]
[1729872720428,1.241,172.73,172.65,13.91093783]
[1729872720739,1.241,172.73,172.65,20.59093783]
[1729872721740,1.241,172.73,172.63,13.91093783]
[1729872721933,1.241,172.73,172.6,13.91093783]
[1729872721934,13.91093783,172.71,172.6,13.91093783]
[1729872722134,6.68,172.72,172.62,13.91093783]
[1729872722735,2.8975,172.64,172.62,13.91093783]
[1729872723042,6.68,172.72,172.63,13.91093783]
[1729872723245,2.8966,172.7,172.64,2.8973]
[1729872723436,6.68,172.72,172.65,13.91093783]
[1729872723638,1.241,172.73,172.65,13.91093783]
[1729872723844,2.8963,172.71,172.66,2.8971]
[1729872724343,2.8965,172.7,172.65,13.91093783]
[1729872724739,1.241,172.73,172.65,13.91093783]
[1729872724944,2.8966,172.7,172.65,13.91093783]
[1729872725645,1.241,172.73,172.63,6.68]
[1729872726148,1.241,172.73,172.63,9.5775]
[1729872726345,2.8963,172.71,172.67,13.91093783]
[1729872727036,2.8962,172.72,172.67,13.91093783]
[1729872727244,2.582,172.76,172.69,13.91093783]
[1729872729145,4.63,172.75,172.69,13.91093783]
[1729872729449,2.8958,172.74,172.69,13.91093783]
[1729872729742,4.63,172.75,172.73,13.91093783]
[1729872729943,4.63,172.75,172.74,2.8958]
[1729872730640,4.63,172.75,172.74,7.5258]
[1729872731244,1.2885,172.85,172.74,4.63]
[1729872731442,1.2885,172.85,172.79,13.91093783]
[1729872732052,1.2885,172.85,172.77,13.91093783]
[1729872732748,2.8946,172.81,172.77,13.91093783]
[1729872733048,13.91093783,172.79,172.74,4.63]
[1729872733251,6.68,172.82,172.74,2.67]
[1729872733252,2.8956,172.75,172.74,2.67]
[1729872733443,6.68,172.82,172.74,2.67]
[1729872733753,2.8948,172.8,172.74,2.67]
[1729872734047,6.68,172.82,172.74,2.67]
[1729872734242,2.8956,172.75,172.74,2.67]
[1729872734746,1.2562,172.84,172.74,2.67]
[1729872734747,2.895,172.79,172.74,5.5656]
[1729872734945,2.895,172.79,172.74,2.67]
[1729872735248,2.8946,172.81,172.74,2.67]
[1729872735444,1.2562,172.84,172.74,2.67]
[1729872735644,13.91093783,172.83,172.74,2.67]
[1729872735847,1.2562,172.84,172.74,2.67]
[1729872735848,2.8956,172.75,172.74,2.67]
[1729872736045,13.91093783,172.83,172.74,2.67]
[1729872736851,2.895,172.79,172.74,5.5658]
[1729872737445,1.2562,172.84,172.76,13.91093783]
[1729872737647,1.2885,172.85,172.76,20.59093783]
[1729872737843,2.8943,172.83,172.78,2.895]
[1729872738455,1.2885,172.85,172.76,20.59093783]
[1729872739155,1.2885,172.85,172.76,23.48623783]
[1729872739748,2.8945,172.82,172.76,23.48623783]
[1729872740853,2.8945,172.82,172.77,2.8952]
[1729872742844,2.8945,172.82,172.76,20.59093783]
[1729872742845,2.8945,172.82,172.76,23.48633783]
[1729872743251,6.68,172.89,172.81,13.91093783]
[1729872743252,2.8934,172.89,172.81,13.91093783]
[1729872743445,13.91093783,172.9,172.79,13.91093783]
[1729872743646,13.91093783,172.85,172.74,2.67]
[1729872743960,13.91093783,172.83,172.74,2.67]
[1729872744350,4.1,172.84,172.77,13.91093783]
[1729872744554,13.91093783,172.88,172.79,2.8949]
[1729872744756,13.91093783,172.88,172.77,20.59093783]
[1729872744957,2.894,172.85,172.77,20.59093783]
[1729872745451,2.894,172.85,172.77,23.48613783]
[1729872745653,2.894,172.85,172.77,9.5752]
[1729872745852,2.8943,172.84,172.77,6.68]
[1729872746052,13.91093783,172.88,172.78,13.91093783]
[1729872747053,2.8939,172.86,172.79,2.8949]
[1729872747253,2.8939,172.86,172.78,13.91093783]
[1729872747254,6.68,172.89,172.78,13.91093783]
[1729872748150,2.894,172.85,172.78,16.80583783]
[1729872748354,6.68,172.89,172.8,13.91093783]
[1729872749053,13.91093783,172.87,172.77,13.91093783]
[1729872749258,2.8949,172.8,172.74,16.58093783]
[1729872749448,13.91093783,172.85,172.74,16.58093783]
[1729872750056,2.8946,172.81,172.77,13.91093783]
[1729872750255,1.2768,172.86,172.79,13.91093783]
[1729872750767,1.2768,172.86,172.77,13.91093783]
[1729872751257,2.8942,172.84,172.77,13.91093783]
[1729872751561,2.8942,172.84,172.74,2.67]
[1729872751562,13.91093783,172.85,172.74,16.58093783]
[1729872751764,13.91093783,172.83,172.74,2.67]
[1729872751954,2.4709,172.82,172.74,2.67]
[1729872752356,2.4709,172.82,172.75,13.91093783]
[1729872752959,2.4709,172.82,172.74,2.67]
[1729872753162,2.8948,172.8,172.74,2.67]
[1729872753359,2.4709,172.82,172.74,2.67]
[1729872753861,2.895,172.79,172.74,2.67]
[1729872754266,2.895,172.79,172.75,13.91093783]
[1729872754563,13.91093783,172.85,172.75,13.91093783]
[1729872754862,13.91093783,172.83,172.74,2.67]
[1729872756458,13.91093783,172.81,172.74,2.67]
[1729872756863,2.8956,172.76,172.74,2.67]
[1729872757158,13.91093783,172.79,172.74,2.67]
[1729872757362,2.8956,172.75,172.74,2.67]
[1729872759659,2.8952,172.78,172.74,2.67]
[1729872759858,6.34,172.8,172.74,2.67]
[1729872759859,6.34,172.82,172.74,2.67]
[1729872760061,13.91093783,172.9,172.8,13.91093783]
[1729872760263,1.2923,172.89,172.8,13.91093783]
[1729872760659,2.8941,172.84,172.8,13.91093783]
[1729872760859,13.91093783,172.88,172.77,13.91093783]
[1729872761264,13.91093783,172.88,172.77,16.80623783]
[1729872762065,2.8943,172.83,172.77,16.80623783]
[1729872762672,2.8943,172.83,172.78,2.8951]
[1729872762970,2.894,172.85,172.79,13.91093783]
[1729872763569,2.8939,172.86,172.8,2.8947]
[1729872763767,1.2923,172.89,172.79,13.91093783]
[1729872763971,1.2923,172.89,172.82,13.91093783]
[1729872764363,4.1857,172.89,172.83,2.8942]
[1729872764670,1.2923,172.89,172.82,13.91093783]
[1729872765770,13.91093783,172.88,172.8,6.34]
[1729872766068,13.91093783,172.88,172.78,13.91093783]
[1729872766474,2.8944,172.83,172.78,13.91093783]
[1729872767069,2.8944,172.82,172.78,13.91093783]
[1729872767270,2.8944,172.82,172.77,2.8953]
[1729872767271,17.53,172.97,172.81,13.91093783]
[1729872767474,1.3009,172.98,172.88,13.91093783]
[1729872767773,1.3009,172.98,172.89,13.91093783]
[1729872768073,2.8923,172.95,172.89,13.91093783]
[1729872768264,1.3009,172.98,172.89,2.8932]
[1729872768465,1.3009,172.98,172.88,6.34]
[1729872768667,2.8926,172.94,172.84,22.23665552]
[1729872768869,23.53755552,172.98,172.67,5.7937]
[1729872769065,22.23665552,172.95,172.79,6.34]
[1729872769265,2.8932,172.9,172.81,22.23665552]
[1729872769466,2.544,172.94,172.84,22.23665552]
[1729872769670,23.53755552,172.98,172.85,6.34]
[1729872769877,2.8924,172.95,172.85,6.34]
[1729872770067,2.8924,172.95,172.87,2.8936]
[1729872770471,22.23665552,173.04,172.91,2.8928]
[1729872770666,22.23665552,173.04,172.91,6.34]
[1729872771066,2.8916,173.0,172.92,2.8926]
[1729872771274,2.8916,173.0,172.91,6.34]
[1729872771275,22.23665552,173.04,172.91,6.34]
[1729872771467,6.34,173.05,172.91,6.34]
[1729872771468,22.23665552,173.01,172.91,6.34]
[1729872771668,22.23665552,173.01,172.87,22.23665552]
[1729872771669,22.23665552,173.01,172.9,6.34]
[1729872772074,22.23665552,172.99,172.87,6.34]
[1729872772271,22.23665552,172.99,172.86,6.34]
[1729872772272,22.23665552,172.96,172.86,6.34]
[1729872772477,22.23665552,172.96,172.84,6.34]
[1729872772676,3.8037,172.98,172.84,28.57665552]
[1729872772976,3.8037,172.98,172.87,22.23665552]
[1729872773172,2.8924,172.95,172.88,2.8934]
[1729872773365,2.8924,172.95,172.84,28.57665552]
[1729872773366,3.8037,172.98,172.89,6.34]
[1729872773971,3.8037,172.98,172.89,28.57665552]
[1729872774166,22.23665552,173.03,172.89,28.57665552]
[1729872774372,2.8915,173.0,172.94,2.8924]
[1729872774570,3.8037,173.03,172.94,2.8924]
[1729872775678,2.8915,173.0,172.94,2.8924]
[1729872775880,65.42775737,173.08,172.92,22.23665552]
[1729872775881,22.23665552,173.09,172.95,28.57665552]
[1729872776072,1.2132,173.11,173.0,2.8914]
[1729872776383,2.8904,173.07,173.0,6.34]
[1729872776681,2.8904,173.07,173.01,2.8911]
[1729872777275,2.8904,173.06,173.0,9.2314]
[1729872777476,1.2132,173.11,173.0,9.2314]
[1729872777671,2.8907,173.05,173.0,6.34]
[1729872777875,22.23665552,173.1,172.95,22.23665552]
[1729872778072,22.23665552,173.07,172.92,22.23665552]
[1729872778288,1.2346,173.06,172.96,6.34]
[1729872778882,1.2575,173.05,172.96,6.34]
[1729872779376,1.2575,173.05,172.97,2.8919]
[1729872779592,1.2575,173.05,172.96,6.34]
[1729872780187,2.8905,173.06,172.99,2.8915]
[1729872780488,3.7053,173.11,172.98,22.23665552]
[1729872780683,3.7053,173.11,172.99,6.34]
[1729872780883,2.8908,173.04,172.98,22.23665552]
[1729872781185,22.23665552,173.1,172.95,22.23665552]
[1729872781389,22.23665552,173.07,172.94,6.34]
[1729872781590,2.8916,173.0,172.94,6.34]
[1729872781787,22.23665552,173.05,172.94,6.34]
[1729872781987,7.34,173.09,172.94,6.34]
[1729872782189,29.57665552,173.09,172.95,22.23665552]
[1729872782587,2.8906,173.05,172.98,2.8917]
[1729872782790,2.8906,173.05,172.99,6.34]
[1729872782988,29.57665552,173.09,172.99,6.34]
[1729872783195,2.8914,173.01,172.97,6.34]
[1729872783388,22.23665552,173.07,172.97,6.34]
[1729872783889,2.8908,173.04,172.97,6.34]
[1729872784090,22.23665552,173.07,172.97,6.34]
[1729872784982,2.8912,173.02,172.97,6.34]
[1729872785489,2.8918,172.98,172.9,87.09495552]
[1729872785689,22.23665552,173.04,172.91,6.34]
[1729872785890,22.23665552,173.06,172.92,25.12935552]
[1729872786199,2.8915,173.0,172.92,22.23665552]
[1729872786590,22.23665552,173.06,172.92,22.23665552]
[1729872786992,22.23665552,173.06,172.95,2.8922]
[1729872787295,22.23665552,173.06,172.92,22.23665552]
[1729872787491,22.23665552,173.06,172.95,2.8922]
[1729872787690,2.8914,173.01,172.95,2.8922]
[1729872788487,2.892,172.97,172.92,22.23665552]
[1729872788693,6.34,173.04,172.92,6.34]
[1729872788901,22.23665552,173.03,172.92,6.34]
[1729872789592,6.34,173.04,172.92,6.34]
[1729872790001,2.8919,172.98,172.92,9.2327]
[1729872790602,22.23665552,173.03,172.91,6.14]
[1729872790905,22.23665552,173.0,172.91,6.14]
[1729872791107,1.2876,172.99,172.91,6.14]
[1729872792108,1.2876,172.99,172.85,2.4904]
[1729872792109,7.4276,172.99,172.85,2.4904]
[1729872792402,7.4276,172.99,172.85,6.14]
[1729872792403,22.23665552,172.97,172.85,6.14]
[1729872792610,22.23665552,172.97,172.85,28.37665552]
[1729872793004,22.23665552,172.97,172.87,2.8935]
[1729872793209,22.23665552,172.97,172.85,6.14]
[1729872793408,2.8932,172.9,172.85,6.14]
[1729872794414,2.8928,172.92,172.87,2.8936]
[1729872794715,2.8928,172.92,172.85,6.14]
[1729872795211,2.8928,172.92,172.86,2.8937]
[1729872796016,2.8928,172.92,172.87,2.8936]
[1729872796515,2.8928,172.92,172.86,2.8937]
[1729872797320,2.8928,172.92,172.87,2.8936]
[1729872797506,2.8928,172.92,172.85,6.14]
[1729872797507,2.494,172.98,172.89,22.23665552]
[1729872797708,94.15510413,173.04,172.93,22.23665552]
[1729872797909,116.39175965,173.04,172.93,6.14]
[1729872798310,22.23665552,173.02,172.89,2.8932]
[1729872798615,99.93680413,173.04,172.89,6.14]
[1729872798616,22.23665552,172.99,172.89,6.14]
[1729872798915,3.702,172.98,172.89,6.14]
[1729872799306,2.8924,172.95,172.89,6.14]
[1729872799504,3.702,172.98,172.89,6.14]
[1729872800109,3.702,172.98,172.91,2.8928]
[1729872800110,2.892,172.97,172.91,2.8928]
[1729872800405,2.892,172.97,172.89,6.14]
[1729872800613,3.702,172.98,172.89,6.14]
[1729872800805,2.8921,172.96,172.89,6.14]
[1729872801212,2.892,172.97,172.92,2.8927]
[1729872801813,2.478,173.02,172.92,2.8927]
[1729872802018,2.478,173.02,172.89,6.14]
[1729872802606,2.478,173.02,172.92,2.8927]
[1729872802806,2.478,173.02,172.89,6.14]
[1729872803006,2.8923,172.96,172.89,6.14]
[1729872803208,22.23665552,172.98,172.87,2.8936]
[1729872803410,22.23665552,172.95,172.82,22.23665552]
[1729872803614,2.8932,172.9,172.83,6.14]
[1729872804018,28.37665552,172.98,172.83,6.14]
[1729872804207,3.7354,172.97,172.83,6.14]
[1729872804616,2.8931,172.91,172.85,2.8938]
[1729872804812,2.8931,172.91,172.83,6.14]
[1729872805011,3.7354,172.97,172.83,6.14]
[1729872805714,2.8929,172.92,172.87,2.8935]
[1729872806117,3.7354,172.97,172.85,22.23665552]
[1729872806715,2.8929,172.91,172.87,2.8936]
[1729872807222,1.2479,172.97,172.87,2.8936]
[1729872807413,1.2479,172.97,172.88,6.16]
[1729872808121,2.8927,172.93,172.88,6.16]
[1729872808916,2.8927,172.93,172.88,9.0534]
[1729872809516,2.8921,172.96,172.91,2.8928]
[1729872810522,2.8919,172.98,172.92,2.8926]
[1729872810917,22.23665552,173.01,172.92,2.8926]
[1729872811113,3.4952,173.03,172.93,6.16]
[1729872811423,6.16,173.07,172.93,6.16]
[1729872811621,1.3054,173.06,172.93,6.16]
[1729872811817,2.8914,173.01,172.93,6.16]
[1729872812233,1.3054,173.06,172.93,6.16]
[1729872812522,2.8915,173.0,172.94,2.8923]
[1729872812919,2.8915,173.0,172.93,6.16]
[1729872812920,22.23665552,173.02,172.88,24.76495552]
[1729872813229,22.23665552,173.02,172.9,2.893]
[1729872813230,2.8923,172.95,172.9,2.893]
[1729872813525,22.23665552,172.99,172.9,6.16]
[1729872813827,2.8925,172.94,172.9,6.16]
[1729872814018,3.756,172.98,172.9,6.16]
[1729872814214,2.8922,172.96,172.91,2.8928]
[1729872814421,3.756,172.98,172.9,6.16]
[1729872814820,2.8919,172.97,172.93,2.8926]
[1729872815421,4.1542,172.98,172.93,2.8926]
[1729872815622,2.8918,172.98,172.93,2.8926]
[1729872815818,28.39665552,173.02,172.93,2.8926]
[1729872816025,2.8915,173.0,172.95,2.8921]
[1729872816530,2.8915,173.0,172.95,9.0321]
[1729872816724,2.8916,172.99,172.95,9.0321]
[1729872817030,22.23665552,173.02,172.89,1.262]
[1729872817328,22.23665552,173.02,172.9,6.14]
[1729872817530,2.892,172.97,172.92,2.8927]
[1729872818124,22.23665552,173.02,172.89,1.262]
[1729872818326,22.23665552,173.0,172.9,6.14]
[1729872818525,22.23665552,173.0,172.89,6.14]
[1729872818725,2.892,172.97,172.9,2.8931]
[1729872819025,2.892,172.97,172.83,2.5221]
[1729872819026,22.23665552,172.96,172.83,2.5221]
[1729872819223,2.893,172.91,172.85,2.8938]
[1729872820332,2.8931,172.9,172.85,2.8938]
[1729872821533,2.8932,172.9,172.84,8.934]
[1729872822132,7.2915,172.95,172.8,22.23665552]
[1729872822133,2.8938,172.86,172.81,2.8946]
[1729872822828,22.23665552,172.91,172.8,6.04]
[1729872823027,22.23665552,172.91,172.77,62.48]
[1729872823331,22.23665552,172.88,172.77,68.52]
[1729872823529,3.607,172.87,172.77,68.52]
[1729872823726,22.23665552,172.85,172.71,22.23665552]
[1729872823929,22.23665552,172.85,172.72,6.04]
[1729872824333,2.8947,172.81,172.75,2.8956]
[1729872824726,22.23665552,172.85,172.75,2.8956]
[1729872824923,2.8948,172.8,172.74,2.8958]
[1729872825425,22.23665552,172.85,172.74,2.8958]
[1729872825631,2.895,172.79,172.74,2.8958]
[1729872825820,22.23665552,172.82,172.71,2.8962]
[1729872826026,22.23665552,172.82,172.71,8.9362]
[1729872826232,22.23665552,172.82,172.71,6.04]
[1729872826530,22.23665552,172.79,172.71,6.04]
[1729872826726,22.23665552,172.79,172.67,62.48]
[1729872826921,22.23665552,172.79,172.7,2.8964]
[1729872826922,2.8956,172.76,172.7,2.8964]
[1729872827122,2.8956,172.76,172.68,6.04]
[1729872827123,3.7769,172.78,172.68,6.04]
[1729872827728,3.7769,172.78,172.67,68.52]
[1729872827939,2.8959,172.74,172.67,8.9368]
[1729872828127,22.23665552,172.76,172.63,6.04]
[1729872828532,2.8963,172.71,172.63,8.9376]
[1729872828723,3.7769,172.78,172.65,22.23665552]
[1729872829433,2.8954,172.76,172.65,22.23665552]
[1729872829937,2.8954,172.76,172.68,22.23665552]
[1729872830122,2.8954,172.76,172.68,28.27665552]
[1729872830322,2.8954,172.76,172.7,2.8963]
[1729872831236,6.672,172.78,172.71,22.23665552]
[1729872831427,2.8951,172.78,172.71,22.23665552]
[1729872831734,6.04,172.82,172.71,22.23665552]
[1729872831938,2.895,172.79,172.74,2.8957]
[1729872832328,2.895,172.79,172.69,2.4054]